fUSD/lending_fUSD_20241022
["ID","MTS","AMOUNT","RATE_DAILY","PERIOD"]
[340629702,1729558232056,-1000.0,0.00034563,2]
[340629703,1729558232069,-1000.0,0.00034563,2]
[340629704,1729558232079,-1000.0,0.00034563,2]
[340629705,1729558232088,-1140.26722297,0.00034563,120]
[340629706,1729558232098,-177.72,0.00034609,120]
[340629707,1729558232107,-250.0,0.00034735,2]
[340629708,1729558232116,-1000.0,0.0003507,2]
[340629709,1729558232126,-457.87,0.00036383,2]
[340629710,1729558232135,-1000.0,0.00036598,2]
[340629711,1729558232144,-151.0,0.00036658,120]
[340629712,1729558232154,-161.14,0.00036749,120]
[340629713,1729558232163,-180.36142336,0.00037073,2]
[340629714,1729558232172,-250.0,0.00037127,2]
[340629715,1729558232181,-23900.0,0.00037328,2]
[340629716,1729558232190,-700.02,0.00037466,3]
[340629717,1729558232200,-75351.64,0.00037476,2]
[340629718,1729558232209,-186.94,0.00037514,120]
[340629719,1729558232218,-806.85,0.00037721,2]
[340629720,1729558232227,-155.73,0.00037759,2]
[340629721,1729558232237,-1562.56,0.00037762,2]
[340629722,1729558232246,-2610.95,0.00037819,120]
[340629723,1729558232255,-457.87,0.00038647,2]
[340629724,1729558232264,-167.0,0.00038759,2]
[340629725,1729558232273,-344.52,0.00039163,2]
[340629726,1729558232283,-14303.54068593,0.00039452,31]
[340629727,1729558232291,-2181.7179944,0.00040221,7]
[340629728,1729558232301,-350.57834196,0.00040911,2]
[340629729,1729558232315,-107.29165804,0.00040911,2]
[340629730,1729558232325,-151.43,0.00041158,2]
[340629731,1729558232334,-152.85,0.00041158,2]
[340629732,1729558232344,-158.45,0.00041158,2]
[340629733,1729558232353,-1000.0,0.00041172,2]
[340629734,1729558232362,-151.43,0.00041178,2]
[340629735,1729558232371,-151.43,0.00041199,2]
[340629736,1729558232381,-151.43,0.00041219,2]
[340629737,1729558232390,-151.43,0.0004124,2]
[340629738,1729558232399,-151.43,0.0004126,2]
[340629739,1729558232408,-151.43,0.00041281,2]
[340629740,1729558232418,-151.43,0.00041302,2]
[340629741,1729558232427,-151.43,0.00041322,2]
[340629742,1729558232436,-151.43,0.00041343,2]
[340629743,1729558232445,-151.43,0.00041363,2]
[340629744,1729558232454,-161.14,0.00041658,120]
[340629745,1729558232463,-21965.01185127,0.00042112,2]
[340629746,1729558232472,-181.21,0.00042113,120]
[340629747,1729558232482,-531.03,0.00042166,7]
[340629748,1729558232491,-166.58,0.00042466,2]
[340629749,1729558232500,-305.74,0.000429,64]
[340629750,1729558232510,-457.87,0.00043175,2]
[340629751,1729558232520,-500.0,0.00043234,60]
[340629752,1729558232529,-151.0,0.00043315,120]
[340629753,1729558232538,-560.0,0.00043583,2]
[340629754,1729558232547,-812.0,0.00043583,2]
[340629755,1729558232556,-499.8,0.00043583,2]
[340629756,1729558232572,-555.0,0.00043583,2]
[340629757,1729558232581,-936.0,0.00043583,2]
[340629758,1729558232591,-250.0,0.00043583,2]
[340629759,1729558232600,-447.649,0.00043583,2]
[340629760,1729558232616,-150.0,0.00043583,2]
[340629761,1729558232627,-5889.0,0.00043583,2]
[340629762,1729558232637,-150.0,0.00043583,2]
[340629763,1729558232646,-150.0,0.000441,2]
[340629764,1729558232655,-2438.0,0.00044292,30]
[340629765,1729558232664,-500.0,0.0004433,120]
[340629766,1729558232673,-203.29,0.00044734,120]
[340629767,1729558232682,-450.0,0.00045,120]
[340629768,1729558232691,-457.87,0.00045439,2]
[340629769,1729558232701,-1000.0,0.00045747,2]
[340629770,1729558232710,-1261.3604,0.00046275,2]
[340629771,1729558232719,-160.8,0.000463,7]
[340629772,1729558232729,-205.01967296,0.00046373,120]
[340629773,1729558232737,-18304.0275,0.00046375,2]
[340629774,1729558232746,-555.8781,0.00046375,2]
[340629775,1729558232756,-2500.0,0.00046375,2]
[340629776,1729558232765,-14857.1224389,0.00046465,9]
[340629777,1729558232774,-500.0,0.00046474,120]
[340629778,1729558232784,-500.0,0.00046474,120]
[340629779,1729558232793,-500.0,0.00046474,120]
[340629780,1729558232803,-500.0,0.00046474,120]
[340629781,1729558232815,-500.0,0.00046474,120]
[340629782,1729558232825,-500.0,0.00046474,120]
[340629783,1729558232834,-500.0,0.00046474,120]
[340629784,1729558232843,-500.0,0.00046474,120]
[340629785,1729558232852,-500.0,0.00046474,120]
[340629786,1729558232862,-500.0,0.00046474,120]
[340629787,1729558232871,-500.0,0.00046474,120]
[340629788,1729558232880,-500.0,0.00046474,120]
[340629789,1729558232890,-500.0,0.00046474,120]
[340629790,1729558232899,-500.0,0.00046474,120]
[340629791,1729558232908,-500.0,0.00046474,120]
[340629792,1729558232917,-500.0,0.00046474,120]
[340629793,1729558232926,-428.64822955,0.00046474,120]
[340629794,1729558232935,-500.0,0.00046474,120]
[340629795,1729558232944,-500.0,0.00046474,120]
[340629796,1729558232954,-100000.0,0.00046475,2]
[340629797,1729558232963,-17828.5469267,0.00046565,9]
[340629798,1729558232972,-161.14,0.00046568,120]
[340629799,1729558232982,-2971.42448778,0.00046573,9]
[340629800,1729558232991,-500.0,0.00046575,120]
[340629801,1729558233001,-500.0,0.00046575,120]
[340629802,1729558233015,-500.0,0.00046575,120]
[340629803,1729558233024,-1371.57,0.00046575,120]
[340629804,1729558233033,-500.0,0.00046575,120]
[340629805,1729558233044,-500.0,0.00046575,120]
[340629806,1729558233053,-500.0,0.00046575,120]
[340629807,1729558233067,-299.34501352,0.00046575,120]
[340629808,1729558233076,-500.0,0.00046575,120]
[340629809,1729558233086,-1180.47,0.00046575,120]
[340629810,1729558233096,-500.0,0.00046575,60]
[340629811,1729558233105,-500.0,0.00046575,120]
[340629812,1729558233115,-421.53744134,0.00046575,14]
[340629813,1729558233124,-500.0,0.00046575,120]
[340629814,1729558233134,-612.02,0.00046575,120]
[340629815,1729558233144,-500.0,0.00046575,120]
[340629816,1729558233153,-661.5,0.00046575,120]
[340629817,1729558233163,-500.0,0.00046575,120]
[340629818,1729558233173,-500.0,0.00046575,120]
[340629819,1729558233183,-631.18,0.00046575,120]
[340629820,1729558233193,-500.0,0.00046575,120]
[340629821,1729558233203,-500.0,0.00046575,120]
[340629822,1729558233212,-500.0,0.00046575,120]
[340629823,1729558233226,-500.0,0.00046575,120]
[340629824,1729558233235,-501.42035115,0.00046575,120]
[340629825,1729558233245,-216.7880871,0.00046575,120]
[340629826,1729558233254,-1000.0,0.00046575,120]
[340629827,1729558233265,-500.0,0.00046575,120]
[340629828,1729558233275,-1066.9,0.00046575,120]
[340629829,1729558233284,-500.0,0.00046575,120]
[340629830,1729558233296,-1565.82,0.00046575,120]
[340629831,1729558233305,-198.76088254,0.00046575,120]
[340629832,1729558233316,-152.12,0.00046575,120]
[340629833,1729558233326,-500.0,0.00046575,120]
[340629834,1729558233335,-1288.9,0.00046575,120]
[340629835,1729558233344,-1458.87,0.00046575,120]
[340629836,1729558233354,-500.0,0.00046575,120]
[340629837,1729558233364,-686.0,0.00046575,120]
[340629838,1729558233374,-1291.5,0.00046575,120]
[340629839,1729558233383,-500.0,0.00046575,120]
[340629840,1729558233394,-500.0,0.00046575,120]
[340629841,1729558233403,-1435.98,0.00046575,120]
[340629842,1729558233413,-500.0,0.00046575,120]
[340629843,1729558233423,-700.37,0.00046575,120]
[340629844,1729558233433,-1884.17,0.00046575,120]
[340629845,1729558233442,-150.0,0.00046583,2]
[340629846,1729558233452,-1360.965,0.00046583,2]
[340629847,1729558233461,-5942.84897556,0.00046739,9]
[340629848,1729558233471,-460.96413048,0.00046749,18]
[340629849,1729558233480,-2934.4413,0.00046749,2]
[340629850,1729558233641,-1000.0,0.00046749,2]
[340629851,1729558233650,-6427.174,0.00046749,2]
[340629852,1729558233660,-390.61644014,0.000468,24]
[340629853,1729558233669,-5942.84897556,0.00046838,10]
[340629854,1729558233678,-14857.1224389,0.00046839,10]
[340629855,1729558233687,-500.0,0.00046848,120]
[340629856,1729558233696,-222.42800311,0.00046848,120]
[340629857,1729558233706,-1289.05,0.00046848,120]
[340629858,1729558233715,-1253.05,0.00046848,120]
[340629859,1729558233725,-500.0,0.00046848,120]
[340629860,1729558233735,-500.0,0.00046848,120]
[340629861,1729558233744,-785.94,0.00046848,120]
[340629862,1729558233753,-940.26,0.00046848,7]
[340629863,1729558233763,-1809.91,0.00046848,120]
[340629864,1729558233773,-907.62,0.00046848,120]
[340629865,1729558233782,-590.0,0.00046848,120]
[340629866,1729558233791,-500.0,0.00046849,120]
[340629867,1729558233801,-500.0,0.00046849,120]
[340629868,1729558233811,-500.0,0.00046849,120]
[340629869,1729558233824,-1371.57,0.00046849,120]
[340629870,1729558233834,-500.0,0.00046849,120]
[340629871,1729558233844,-500.0,0.00046849,120]
[340629872,1729558233853,-1180.47,0.00046849,120]
[340629873,1729558233862,-500.0,0.00046849,60]
[340629874,1729558233871,-612.02,0.00046849,120]
[340629875,1729558233881,-661.5,0.00046849,120]
[340629876,1729558233891,-631.18,0.00046849,120]
[340629877,1729558233900,-485.74013607,0.00046849,120]
[340629878,1729558233910,-500.0,0.00046849,120]
[340629879,1729558233920,-1066.9,0.00046849,120]
[340629880,1729558233929,-500.0,0.00046849,120]
[340629881,1729558233939,-1565.82,0.00046849,120]
[340629882,1729558233948,-500.0,0.00046849,120]
[340629883,1729558233958,-1288.9,0.00046849,120]
[340629884,1729558233968,-1458.87,0.00046849,120]
[340629885,1729558233977,-568.68523105,0.00046849,120]
[340629886,1729558233987,-686.0,0.00046849,120]
[340629887,1729558233996,-1291.5,0.00046849,120]
[340629888,1729558234006,-500.0,0.00046849,120]
[340629889,1729558234016,-500.0,0.00046849,120]
[340629890,1729558234025,-1435.98,0.00046849,120]
[340629891,1729558234034,-700.37,0.00046849,120]
[340629892,1729558234044,-1884.17,0.00046849,120]
[340629893,1729558234053,-150.0,0.00046851,7]
[340629894,1729558234063,-5942.84897556,0.00046862,10]
[340629895,1729558234076,-5942.84897556,0.00046873,10]
[340629896,1729558234085,-37945.18538005,0.00046874,10]
[340629897,1729558234099,-15540.45539995,0.00046874,10]
[340629898,1729558234108,-154.31,0.00046874,2]
[340629899,1729558234117,-1457.94,0.00046883,120]
[340629900,1729558234127,-1365.41,0.00046883,120]
[340629901,1729558234135,-1613.29,0.00046883,120]
[340629902,1729558234145,-854.56,0.00046883,120]
[340629903,1729558234154,-500.0,0.00046883,120]
[340629904,1729558234163,-1275.3,0.00046883,120]
[340629905,1729558234173,-1161.93,0.00046883,120]
[340629906,1729558234182,-620.64,0.00046883,120]
[340629907,1729558234191,-39399.51405581,0.00046884,2]
[340629908,1729558234202,-332.1735919,0.00046884,2]
[340629909,1729558234214,-588.01158738,0.00046884,2]
[340629910,1729558234225,-3516.8155744,0.00046884,2]
[340629911,1729558234237,-17133.32654787,0.00046884,2]
[340629912,1729558234248,-1004.38980736,0.00046884,2]
[340629913,1729558234259,-74787.59817183,0.00046884,2]
[340629914,1729558234270,-333.86353,0.00046884,2]
[340629915,1729558234285,-37237.87683345,0.00046884,2]
[340629916,1729558234296,-4049.58698468,0.00046896,9]
[340629917,1729558234305,-600.0,0.000469,17]
[340629918,1729558234318,-150.0,0.00046975,7]
[340629919,1729558234327,-150.0,0.00046988,7]
[340629920,1729558234336,-2024.79349234,0.0004699,10]
[340629921,1729558234345,-150.0,0.00046995,7]
[340629922,1729558234355,-450.0,0.00047,120]
[340629923,1729558234364,-7707.74268946,0.00047,30]
[340629924,1729558234376,-485.64526335,0.00047,30]
[340629927,1729558237478,-500.0,0.00046575,120]
[340629928,1729558237487,-3842.6079504,0.00047,30]
[340629929,1729558237499,-3683.84039639,0.00047,30]
[340629930,1729558237535,-199.07051514,0.00047,30]
[340629931,1729558237545,-150.0,0.00047057,7]
[340629932,1729558237554,-150.0,0.00047067,7]
[340629933,1729558237563,-150.0,0.00047089,7]
[340629934,1729558237577,-2024.79349234,0.00047113,10]
[340629935,1729558237586,-150.0,0.00047118,7]
[340629936,1729558237595,-500.0,0.00047122,120]
[340629937,1729558237606,-1289.05,0.00047122,120]
[340629938,1729558237615,-1253.05,0.00047122,120]
[340629939,1729558237624,-500.0,0.00047122,120]
[340629940,1729558237633,-500.0,0.00047122,120]
[340629941,1729558237642,-785.94,0.00047122,120]
[340629942,1729558237651,-940.26,0.00047122,7]
[340629943,1729558237660,-1809.91,0.00047122,120]
[340629944,1729558237670,-907.62,0.00047122,120]
[340629945,1729558237679,-500.0,0.00047123,120]
[340629946,1729558237688,-500.0,0.00047123,120]
[340629947,1729558237698,-500.0,0.00047123,120]
[340629948,1729558237707,-1371.57,0.00047123,120]
[340629949,1729558237716,-500.0,0.00047123,120]
[340629950,1729558237726,-500.0,0.00047123,120]
[340629951,1729558237735,-1180.47,0.00047123,120]
[340629952,1729558237744,-500.0,0.00047123,60]
[340629953,1729558237754,-612.02,0.00047123,120]
[340629954,1729558237763,-661.5,0.00047123,120]
[340629955,1729558237773,-631.18,0.00047123,120]
[340629956,1729558237783,-500.0,0.00047123,120]
[340629957,1729558237792,-1066.9,0.00047123,120]
[340629958,1729558237801,-500.0,0.00047123,120]
[340629959,1729558237815,-1565.82,0.00047123,120]
[340629960,1729558237829,-500.0,0.00047123,120]
[340629961,1729558237839,-1288.9,0.00047123,120]
[340629962,1729558237849,-1458.87,0.00047123,120]
[340629963,1729558237859,-686.0,0.00047123,120]
[340629964,1729558237869,-1291.5,0.00047123,120]
[340629965,1729558237879,-500.0,0.00047123,120]
[340629966,1729558237889,-500.0,0.00047123,120]
[340629967,1729558237899,-1435.98,0.00047123,120]
[340629968,1729558237909,-700.37,0.00047123,120]
[340629969,1729558237919,-1884.17,0.00047123,120]
[340629970,1729558237928,-150.0,0.00047124,7]
[340629971,1729558237938,-2024.79349234,0.00047147,10]
[340629972,1729558237947,-1457.94,0.00047157,120]
[340629973,1729558237957,-1365.41,0.00047157,120]
[340629974,1729558237967,-1613.29,0.00047157,120]
[340629975,1729558237976,-854.56,0.00047157,120]
[340629976,1729558237986,-630.24,0.00047157,120]
[340629977,1729558237996,-1275.3,0.00047157,120]
[340629978,1729558238005,-1161.93,0.00047157,120]
[340629979,1729558238015,-620.64,0.00047157,120]
[340629980,1729558238025,-150.0,0.00047166,7]
[340629981,1729558238034,-150.0,0.00047176,7]
[340629982,1729558238044,-1038.0,0.00047179,7]
[340629983,1729558238053,-150.0,0.00047179,7]
[340629984,1729558238062,-150.0,0.00047186,7]
[340629985,1729558238073,-150.0,0.00047194,7]
[340629986,1729558238083,-150.0,0.00047222,7]
[340629987,1729558238092,-150.0,0.00047242,7]
[340629988,1729558238102,-150.0,0.00047256,7]
[340629989,1729558238111,-150.0,0.00047268,7]
[340629990,1729558238120,-150.0,0.00047282,7]
[340629991,1729558238130,-150.0,0.00047285,7]
[340629992,1729558238139,-150.0,0.00047298,7]
[340629993,1729558238148,-150.0,0.00047317,7]
[340629994,1729558238157,-150.0,0.00047317,7]
[340629995,1729558238167,-150.0,0.00047334,7]
[340629996,1729558238176,-150.0,0.00047339,7]
[340629997,1729558238186,-150.0,0.00047348,7]
[340629998,1729558238195,-150.0,0.00047357,7]
[340629999,1729558238205,-150.0,0.00047367,7]
[340630000,1729558238214,-2024.79349234,0.00047387,10]
[340630001,1729558238224,-150.0,0.00047387,7]
[340630003,1729558238234,-500.34615,0.00047396,120]
[340630005,1729558238243,-1289.05,0.00047396,120]
[340630007,1729558238253,-1253.05,0.00047396,120]
[340630008,1729558238262,-270.71388487,0.00047396,120]
[340630010,1729558238272,-500.0,0.00047396,120]
[340630011,1729558238281,-785.94,0.00047396,120]
[340630012,1729558238290,-940.26,0.00047396,7]
[340630014,1729558238299,-1809.91,0.00047396,120]
[340630016,1729558238309,-907.62,0.00047396,120]
[340630018,1729558238320,-500.0,0.00047397,120]
[340630019,1729558238329,-500.0,0.00047397,120]
[340630020,1729558238338,-500.0,0.00047397,120]
[340630021,1729558238348,-1371.57,0.00047397,120]
[340630022,1729558238358,-500.0,0.00047397,120]
[340630023,1729558238368,-500.0,0.00047397,120]
[340630024,1729558238377,-1180.47,0.00047397,120]
[340630025,1729558238387,-500.0,0.00047397,60]
[340630026,1729558238396,-612.02,0.00047397,120]
[340630027,1729558238405,-661.5,0.00047397,120]
[340630028,1729558238415,-631.18,0.00047397,120]
[340630029,1729558238424,-500.0,0.00047397,120]
[340630030,1729558238433,-1066.9,0.00047397,120]
[340630031,1729558238443,-500.0,0.00047397,120]
[340630032,1729558238452,-1565.82,0.00047397,120]
[340630033,1729558238462,-500.0,0.00047397,120]
[340630034,1729558238471,-1288.9,0.00047397,120]
[340630035,1729558238481,-1458.87,0.00047397,120]
[340630036,1729558238490,-686.0,0.00047397,120]
[340630037,1729558238500,-1291.5,0.00047397,120]
[340630038,1729558238509,-500.0,0.00047397,120]
[340630039,1729558238519,-500.0,0.00047397,120]
[340630040,1729558238529,-1435.98,0.00047397,120]
[340630041,1729558238538,-700.37,0.00047397,120]
[340630042,1729558238548,-1884.17,0.00047397,120]
[340630043,1729558238557,-150.0,0.00047397,7]
[340630044,1729558238567,-150.0,0.000474,7]
[340630045,1729558238577,-150.0,0.00047425,7]
[340630046,1729558238586,-1457.94,0.00047431,120]
[340630047,1729558238596,-1365.41,0.00047431,120]
[340630048,1729558238605,-1613.29,0.00047431,120]
[340630049,1729558238614,-854.56,0.00047431,120]
[340630050,1729558238624,-1275.3,0.00047431,120]
[340630051,1729558238633,-1161.93,0.00047431,120]
[340630052,1729558238642,-620.64,0.00047431,120]
[340630053,1729558238653,-150.0,0.00047436,7]
[340630054,1729558238662,-150.0,0.00047438,7]
[340630055,1729558238671,-150.0,0.00047438,7]
[340630056,1729558238681,-150.0,0.00047445,7]
[340630057,1729558238690,-150.0,0.00047448,14]
[340630058,1729558238699,-390.61644014,0.0004745,25]
[340630059,1729558238709,-150.0,0.00047462,7]
[340630060,1729558238718,-150.0,0.0004747,7]
[340630061,1729558238727,-150.0,0.00047479,7]
[340630062,1729558238736,-150.0,0.00047484,7]
[340630063,1729558238746,-2024.79349234,0.00047518,10]
[340630064,1729558238755,-150.0,0.00047549,7]
[340630065,1729558238764,-150.0,0.00047553,7]
[340630066,1729558238774,-150.0,0.00047561,7]
[340630067,1729558238783,-150.0,0.00047562,14]
[340630068,1729558238792,-150.0,0.00047565,7]
[340630069,1729558238801,-150.0,0.00047566,14]
[340630070,1729558238811,-150.0,0.00047594,7]
[340630071,1729558238822,-150.0,0.00047597,7]
[340630072,1729558238831,-1300.0,0.000476,17]
[340630073,1729558238841,-1000.0,0.00047606,2]
[340630074,1729558238851,-468.5016,0.00047606,2]
[340630075,1729558238860,-150.0,0.00047613,7]
[340630076,1729558238869,-150.0,0.00047641,7]
[340630077,1729558238879,-150.0,0.00047644,7]
[340630078,1729558238888,-150.0,0.00047644,7]
[340630079,1729558238898,-2024.79349234,0.00047661,10]
[340630080,1729558238907,-150.0,0.00047662,7]
[340630081,1729558238917,-150.0,0.00047664,7]
[340630082,1729558238926,-1289.05,0.0004767,120]
[340630083,1729558238935,-1253.05,0.0004767,120]
[340630084,1729558238944,-500.0,0.0004767,120]
[340630085,1729558238954,-785.94,0.0004767,120]
[340630086,1729558238963,-940.26,0.0004767,7]
[340630087,1729558238972,-1809.91,0.0004767,120]
[340630088,1729558238982,-907.62,0.0004767,120]
[340630089,1729558238991,-1371.57,0.00047671,120]
[340630090,1729558239000,-500.0,0.00047671,120]
[340630091,1729558239010,-1180.47,0.00047671,120]
[340630092,1729558239019,-500.0,0.00047671,60]
[340630093,1729558239029,-612.02,0.00047671,120]
[340630094,1729558239038,-661.5,0.00047671,120]
[340630095,1729558239047,-631.18,0.00047671,120]
[340630096,1729558239057,-500.0,0.00047671,120]
[340630097,1729558239067,-1066.9,0.00047671,120]
[340630098,1729558239078,-500.0,0.00047671,120]
[340630099,1729558239088,-1565.82,0.00047671,120]
[340630100,1729558239097,-638.23380711,0.00047671,120]
[340630101,1729558239106,-1288.9,0.00047671,120]
[340630102,1729558239115,-1458.87,0.00047671,120]
[340630103,1729558239124,-686.0,0.00047671,120]
[340630104,1729558239134,-1291.5,0.00047671,120]
[340630105,1729558239144,-500.0,0.00047671,120]
[340630106,1729558239154,-500.0,0.00047671,120]
[340630107,1729558239163,-1435.98,0.00047671,120]
[340630108,1729558239173,-700.37,0.00047671,120]
[340630109,1729558239183,-1884.17,0.00047671,120]
[340630110,1729558239193,-150.0,0.00047678,7]
[340630111,1729558239203,-150.0,0.00047682,7]
[340630112,1729558239213,-2024.79349234,0.0004769,10]
[340630113,1729558239226,-150.0,0.00047692,7]
[340630114,1729558239236,-150.0,0.00047697,7]
[340630115,1729558239246,-9562.76725,0.000477,2]
[340630116,1729558239256,-2000.0,0.000477,17]
[340630117,1729558239267,-457.87,0.00047703,2]
[340630118,1729558239277,-1457.94,0.00047705,120]
[340630119,1729558239286,-1365.41,0.00047705,120]
[340630120,1729558239298,-1613.29,0.00047705,120]
[340630121,1729558239309,-854.56,0.00047705,120]
[340630122,1729558239322,-1275.3,0.00047705,120]
[340630123,1729558239332,-1161.93,0.00047705,120]
[340630124,1729558239342,-620.64,0.00047705,120]
[340630125,1729558239352,-150.0,0.00047714,7]
[340630126,1729558239362,-150.0,0.00047728,14]
[340630127,1729558239372,-150.0,0.0004775,7]
[340630129,1729558239382,-1500.0,0.00047769,14]
[340630130,1729558239392,-150.0,0.00047771,14]
[340630131,1729558239402,-150.0,0.00047779,7]
[340630132,1729558239411,-150.0,0.00047784,7]
[340630133,1729558239421,-150.0,0.00047788,7]
[340630134,1729558239430,-2024.79349234,0.0004779,10]
[340630135,1729558239440,-1500.0,0.00047792,14]
[340630137,1729558239563,-2700.0,0.000478,17]
[340630138,1729558239576,-150.0,0.00047802,7]
[340630139,1729558239586,-150.0,0.00047804,7]
[340630140,1729558239595,-150.0,0.0004783,7]
[340630141,1729558239605,-150.0,0.00047833,7]
[340630142,1729558239614,-2024.79349234,0.00047834,10]
[340630143,1729558239624,-150.0,0.00047838,7]
[340630144,1729558239634,-1500.0,0.00047842,14]
[340630145,1729558239644,-150.01,0.00047844,2]
[340630146,1729558239653,-11923.95242144,0.00047844,2]
[340630147,1729558239663,-8099.17396936,0.00047852,10]
[340630148,1729558239674,-260.17147834,0.00047852,7]
[340630149,1729558239683,-154.1469,0.00047852,14]
[340630150,1729558239692,-151.0,0.00047852,14]
[340630151,1729558239702,-151.0,0.00047852,14]
[340630152,1729558239712,-766.242902,0.00047852,14]
[340630153,1729558239722,-766.242902,0.00047852,14]
[340630154,1729558239733,-151.0,0.00047852,14]
[340630155,1729558239744,-150.0,0.00047855,7]
[340630156,1729558239753,-88870.3826,0.00047862,120]
[340630157,1729558239763,-151.0,0.00047862,14]
[340630158,1729558239773,-150.0,0.00047873,7]
[340630159,1729558239783,-2024.79349234,0.00047881,10]
[340630160,1729558239792,-150.0,0.00047886,14]
[340630161,1729558239801,-150.0,0.00047889,14]
[340630162,1729558239811,-7500.0,0.00047891,120]
[340630163,1729558239822,-150.0,0.000479,7]
[340630164,1729558239832,-3300.0,0.000479,17]
[340630165,1729558239842,-150.0,0.00047905,14]
[340630166,1729558239852,-2024.79349234,0.00047906,10]
[340630167,1729558239863,-150.0,0.00047911,7]
[340630168,1729558239873,-500.0,0.00047916,10]
[340630169,1729558239882,-480.77590258,0.00047916,10]
[340630170,1729558239892,-500.0,0.00047916,10]
[340630171,1729558239902,-500.0,0.00047916,10]
[340630172,1729558239912,-500.0,0.00047916,10]
[340630173,1729558239921,-500.0,0.00047916,10]
[340630174,1729558239931,-500.0,0.00047916,10]
[340630175,1729558239940,-500.0,0.00047916,10]
[340630176,1729558239950,-500.0,0.00047916,10]
[340630177,1729558239963,-500.0,0.00047916,10]
[340630178,1729558239972,-500.0,0.00047916,10]
[340630179,1729558239982,-500.0,0.00047916,10]
[340630180,1729558239991,-500.0,0.00047916,10]
[340630181,1729558240001,-500.0,0.00047916,10]
[340630182,1729558240010,-500.0,0.00047916,10]
[340630183,1729558240020,-500.0,0.00047916,10]
[340630184,1729558240029,-500.0,0.00047916,10]
[340630185,1729558240039,-500.0,0.00047916,10]
[340630186,1729558240048,-500.0,0.00047916,10]
[340630187,1729558240057,-500.0,0.00047916,10]
[340630188,1729558240066,-500.0,0.00047916,10]
[340630189,1729558240077,-500.0,0.00047916,10]
[340630190,1729558240087,-500.0,0.00047916,10]
[340630191,1729558240096,-500.0,0.00047916,10]
[340630192,1729558240106,-500.0,0.00047916,10]
[340630193,1729558240115,-500.0,0.00047916,10]
[340630194,1729558240125,-500.0,0.00047916,10]
[340630195,1729558240135,-500.0,0.00047916,10]
[340630196,1729558240144,-500.0,0.00047916,10]
[340630197,1729558240153,-500.0,0.00047916,10]
[340630198,1729558240163,-500.0,0.00047916,10]
[340630199,1729558240173,-500.0,0.00047916,10]
[340630200,1729558240182,-500.0,0.00047916,10]
[340630201,1729558240191,-500.0,0.00047916,10]
[340630202,1729558240200,-500.0,0.00047916,10]
[340630203,1729558240210,-500.0,0.00047916,10]
[340630204,1729558240219,-500.0,0.00047916,10]
[340630205,1729558240228,-500.0,0.00047916,10]
[340630206,1729558240238,-500.0,0.00047916,10]
[340630207,1729558240247,-500.0,0.00047916,10]
[340630208,1729558240256,-624.32457516,0.00047916,10]
[340630209,1729558240265,-150.0,0.00047919,7]
[340630210,1729558240275,-202.82218917,0.00047924,60]
[340630211,1729558240285,-2024.79349234,0.00047925,10]
[340630212,1729558240294,-150.0,0.0004793,7]